bitfinex-derivatives/quotes_BTCF0:USTF0_20241223
["timestamp","ask_amount","ask_price","bid_price","bid_amount"]
[1734925238073,9.101e-05,95455.0,95454.0,0.3608]
[1734925238878,9.101e-05,95455.0,95454.0,0.2348]
[1734925239882,0.3608,95484.0,95461.0,0.052432]
[1734925240192,0.01059853,95485.0,95474.0,0.413225]
[1734925240379,0.052417,95488.0,95478.0,0.15846556]
[1734925241484,0.05242,95483.0,95474.0,0.3608]
[1734925241686,0.05242,95483.0,95478.0,0.001]
[1734925242084,0.05242,95483.0,95474.0,0.3608]
[1734925242285,0.05242,95483.0,95478.0,0.001]
[1734925244290,0.05242,95483.0,95474.0,0.3608]
[1734925244474,0.05242,95483.0,95478.0,0.001]
[1734925246487,0.3608,95486.0,95478.0,0.001]
[1734925246684,0.41377401,95494.0,95479.0,0.052421]
[1734925246884,0.413214,95494.0,95484.0,0.15846556]
[1734925247077,0.3608,95494.0,95484.0,0.15846556]
[1734925247489,0.01095647,95501.0,95489.0,0.413216]
[1734925247686,0.3608,95506.0,95493.0,0.052414]
[1734925247893,0.413843,95515.0,95489.0,0.3608]
[1734925248096,0.00064,95515.0,95502.0,0.052409]
[1734925248287,0.01089792,95523.0,95502.0,0.052409]
[1734925248592,0.01089792,95523.0,95500.0,0.3608]
[1734925248593,0.052396,95526.0,95504.0,0.052408]
[1734925248786,0.01083504,95524.0,95504.0,0.052408]
[1734925249495,0.052396,95526.0,95512.0,0.3608]
[1734925249684,0.052396,95526.0,95514.0,0.15846556]
[1734925249886,0.05239,95538.0,95521.0,0.3608]
[1734925250086,0.05239,95538.0,95528.0,0.15846556]
[1734925250387,0.06348388,95538.0,95528.0,0.15846556]
[1734925251194,0.06348388,95538.0,95528.0,0.16346556]
[1734925253891,0.01109388,95538.0,95528.0,0.005]
[1734925254091,0.052392,95534.0,95528.0,0.005]
[1734925255205,0.052392,95534.0,95521.0,0.3608]
[1734925255390,0.052392,95534.0,95528.0,0.007]
[1734925257502,0.052392,95534.0,95522.0,0.3608]
[1734925258006,0.3608,95538.0,95528.0,0.007]
[1734925258195,0.3608,95538.0,95528.0,0.16546556]
[1734925258397,0.052387,95543.0,95530.0,0.3608]
[1734925258789,0.052387,95543.0,95530.0,0.2348]
[1734925260199,0.01103428,95546.0,95530.0,0.2348]
[1734925260403,0.3608,95547.0,95536.0,0.15846556]
[1734925260996,0.00157076,95549.0,95546.0,0.052385]
[1734925261190,0.00056001,95573.0,95548.0,0.3608]
[1734925261403,0.3608,95574.0,95563.0,0.21084156]
[1734925261698,0.15540137,95575.0,95560.0,0.3608]
[1734925261699,0.01104268,95575.0,95568.0,0.3608]
[1734925261899,0.15540137,95577.0,95576.0,0.052369]
[1734925263199,0.15540137,95577.0,95567.0,0.15846556]
[1734925263417,0.052365,95583.0,95567.0,0.15846556]
[1734925263907,0.052365,95583.0,95576.0,0.008]
[1734925264498,0.052365,95583.0,95569.0,0.052373]
[1734925264697,0.3608,95593.0,95582.0,0.052365]
[1734925264905,0.3608,95593.0,95585.0,0.052363]
[1734925265409,0.3608,95593.0,95592.0,0.05236]
[1734925266001,0.1,95600.0,95592.0,0.05236]
[1734925267413,0.052363,95588.0,95585.0,0.009]
[1734925267710,0.3608,95593.0,95581.0,0.3608]
[1734925267910,0.3608,95593.0,95592.0,0.009]
[1734925269011,0.052361,95591.0,95581.0,0.005]
[1734925269599,0.36144,95593.0,95581.0,0.005]
[1734925269806,0.052362,95589.0,95581.0,0.005]
[1734925270204,0.3722996,95593.0,95581.0,0.005]
[1734925270505,0.052363,95587.0,95581.0,0.005]
[1734925270811,0.052363,95587.0,95569.0,0.116073]
[1734925271211,0.3723396,95593.0,95581.0,0.003]
[1734925271412,0.052365,95583.0,95581.0,0.003]
[1734925271813,0.052365,95583.0,95581.0,0.001]
[1734925272114,0.001,95587.0,95581.0,0.001]
[1734925273016,0.413165,95583.0,95581.0,0.001]
[1734925273608,0.052366,95582.0,95581.0,0.005]
[1734925274006,0.3608,95583.0,95560.0,0.00156954]
[1734925274318,0.3608,95641.0,95584.0,0.3608]
[1734925274520,0.218841,95628.0,95622.0,0.052343]
[1734925274817,0.218841,95628.0,95627.0,0.052341]
[1734925276318,0.115441,95628.0,95627.0,0.052341]
[1734925276718,0.052332,95644.0,95629.0,0.052339]
[1734925277018,0.00851223,95653.0,95633.0,0.3608]
[1734925277019,0.052335,95638.0,95633.0,0.3608]
[1734925277409,0.00056058,95637.0,95633.0,0.3608]
[1734925278104,0.00056058,95637.0,95633.0,0.3618]
[1734925278305,0.00056058,95636.0,95633.0,0.3618]
[1734925280110,0.00056058,95636.0,95633.0,0.3608]
[1734925280310,1.18056001,95641.0,95635.0,0.3608]
[1734925280311,0.00056001,95641.0,95635.0,0.3608]
[1734925280520,0.3608,95667.0,95646.0,0.05233]
[1734925280521,0.05232,95665.0,95646.0,0.05233]
[1734925280723,0.05232,95665.0,95656.0,0.3608]
[1734925281020,0.00056058,95664.0,95656.0,0.3608]
[1734925281615,0.00870332,95668.0,95656.0,0.3608]
[1734925281813,0.052322,95661.0,95656.0,0.3608]
[1734925282322,0.00056058,95660.0,95656.0,0.3608]
[1734925283315,0.00056058,95660.0,95656.0,0.3638]
[1734925283917,0.00056058,95660.0,95656.0,0.2378]
[1734925284222,0.00056058,95660.0,95656.0,0.2348]
[1734925284413,0.00056058,95660.0,95656.0,0.2378]
[1734925284616,0.00056058,95660.0,95656.0,0.003]
[1734925284816,0.052324,95658.0,95656.0,0.003]
[1734925286523,0.052324,95658.0,95656.0,0.002]
[1734925287718,0.052324,95658.0,95648.0,0.51926556]
[1734925288320,0.052328,95651.0,95648.0,0.3608]
[1734925288823,0.052328,95651.0,95640.0,0.15846556]
[1734925289414,0.00056058,95650.0,95640.0,0.15846556]
[1734925289628,0.00056058,95650.0,95648.0,0.003]
[1734925290125,0.00056058,95650.0,95640.0,0.16546556]
[1734925290832,0.00056058,95650.0,95648.0,0.003]
[1734925291721,0.00739531,95650.0,95648.0,0.003]
[1734925292228,0.052329,95649.0,95638.0,0.052335]
[1734925292529,0.052331,95646.0,95640.0,0.007]
[1734925292928,0.052331,95646.0,95635.0,0.37002875]
[1734925292929,0.05289158,95646.0,95635.0,0.37002875]
[1734925293125,0.052331,95646.0,95635.0,0.36926875]
[1734925293530,0.052331,95646.0,95638.0,0.006]
[1734925293723,0.00056058,95645.0,95638.0,0.006]
[1734925294130,0.00056058,95645.0,95635.0,0.43144475]
[1734925294330,0.052331,95646.0,95635.0,0.43060475]
[1734925295827,0.052331,95646.0,95638.0,0.007]
[1734925296027,0.00056058,95645.0,95638.0,0.007]
[1734925296435,0.00056058,95645.0,95636.0,0.052335]
[1734925297140,0.00056058,95645.0,95638.0,0.007]
[1734925297729,0.00056058,95645.0,95637.0,0.052335]
[1734925299034,0.3608,95644.0,95637.0,0.052335]
[1734925299230,0.413132,95644.0,95638.0,0.008]
[1734925299833,0.413132,95644.0,95637.0,0.060335]
[1734925300233,0.3608,95644.0,95638.0,0.052334]
[1734925300432,0.3608,95644.0,95642.0,0.052332]
[1734925300735,0.36824414,95652.0,95639.0,0.0665]
[1734925301044,0.36760414,95652.0,95643.0,0.052332]
[1734925301240,0.12477238,95651.0,95643.0,0.052332]
[1734925301839,0.12477238,95651.0,95644.0,0.3608]
[1734925302442,0.00056058,95651.0,95644.0,0.3608]
[1734925303142,0.00056058,95651.0,95644.0,0.3658]
[1734925303647,0.00056058,95651.0,95644.0,0.3608]
[1734925303833,0.00056058,95651.0,95644.0,0.2398]
[1734925304143,0.1242118,95646.0,95644.0,0.2398]
[1734925304335,0.1242118,95646.0,95644.0,0.005]
[1734925304833,0.3608,95645.0,95644.0,0.005]
[1734925305239,0.3608,95645.0,95637.0,0.052335]
[1734925305833,0.3608,95645.0,95644.0,0.006]
[1734925306337,0.3608,95645.0,95637.0,0.052335]
[1734925306338,0.36136058,95645.0,95637.0,0.052335]
[1734925306539,0.41326348,95645.0,95637.0,0.061335]
[1734925306843,0.052332,95644.0,95637.0,0.009]
[1734925307045,0.052332,95644.0,95630.0,0.00685791]
[1734925307244,0.3608,95636.0,95624.0,0.3608]
[1734925308447,0.3608,95636.0,95634.0,0.052337]
[1734925309642,0.3618,95636.0,95634.0,0.052337]
[1734925310251,0.3608,95636.0,95634.0,0.061337]
[1734925311333,0.413136,95636.0,95619.0,0.18271396]
[1734925311538,0.413136,95636.0,95612.0,0.066]
[1734925311539,0.3608,95622.0,95614.0,0.18492734]
[1734925311838,0.3608,95622.0,95603.0,0.36734703]
[1734925311839,0.052353,95604.0,95603.0,0.36734703]
[1734925312038,0.3608,95604.0,95603.0,0.36734703]
[1734925312651,0.052353,95606.0,95603.0,0.36734703]
[1734925312845,7.482e-05,95605.0,95603.0,0.36734703]
[1734925313043,0.05222374,95604.0,95591.0,0.05236]
[1734925313246,0.05222374,95604.0,95603.0,0.004]
[1734925314846,0.05222374,95604.0,95592.0,0.05236]
[1734925315445,0.05322374,95604.0,95592.0,0.05236]
[1734925315944,0.05222374,95604.0,95592.0,0.05236]
[1734925316249,0.05222374,95604.0,95592.0,0.05936]
[1734925316250,0.15621223,95599.0,95592.0,0.05936]
[1734925316552,0.15621223,95599.0,95592.0,0.005]
[1734925316757,0.12491603,95595.0,95592.0,0.005]
[1734925317052,0.12491603,95595.0,95592.0,0.05736]
[1734925318346,0.052354,95603.0,95592.0,0.05736]
[1734925318347,0.09365241,95593.0,95592.0,0.05736]
[1734925318747,0.09365241,95593.0,95592.0,0.05236]
[1734925319344,0.001,95595.0,95592.0,0.05236]
[1734925320953,0.009,95593.0,95592.0,0.001]
[1734925321547,0.3608,95593.0,95577.0,0.0652]
[1734925321754,0.3608,95582.0,95563.0,0.052376]
[1734925321955,0.052367,95579.0,95557.0,0.052379]
[1734925322256,0.052372,95571.0,95563.0,0.00696958]
[1734925322456,0.052372,95571.0,95557.0,0.052379]
[1734925322647,0.052372,95571.0,95556.0,0.3608]
[1734925323046,0.3608,95574.0,95552.0,0.00156975]
[1734925323252,0.413181,95553.0,95552.0,0.00156975]
[1734925324452,0.3608,95553.0,95552.0,0.00156975]
[1734925325052,0.3608,95553.0,95541.0,0.00701353]
[1734925325250,0.3608,95553.0,95552.0,0.052382]
[1734925325750,0.3608,95553.0,95552.0,0.053382]
[1734925326159,0.052378,95560.0,95552.0,0.053382]
[1734925326351,0.052378,95560.0,95552.0,0.052382]
[1734925326953,0.09365241,95562.0,95552.0,0.052382]
[1734925327154,0.052373,95568.0,95552.0,0.052382]
[1734925327455,0.3608,95555.0,95552.0,0.052382]
[1734925328057,0.002,95553.0,95552.0,0.052382]
[1734925328460,0.3608,95555.0,95552.0,0.052382]
[1734925328660,0.3608,95555.0,95552.0,0.059382]
[1734925328661,0.001,95555.0,95552.0,0.059382]
[1734925329159,0.007,95553.0,95552.0,0.053382]
[1734925329560,0.007,95553.0,95552.0,0.001]
[1734925329856,0.3608,95555.0,95545.0,0.053586]
[1734925330048,0.413181,95555.0,95545.0,0.053586]
[1734925330660,0.3608,95565.0,95556.0,0.05238]
[1734925330956,0.3608,95565.0,95545.0,0.00806556]
[1734925331161,0.052385,95547.0,95545.0,0.0012]
[1734925331355,0.00011783,95546.0,95545.0,0.0012]
[1734925331551,0.052395,95528.0,95527.0,0.00157017]
[1734925332259,0.3608,95528.0,95517.0,7.58e-05]
[1734925332558,0.413201,95518.0,95517.0,7.58e-05]
[1734925333964,0.41863208,95518.0,95517.0,7.58e-05]
[1734925335067,0.41871756,95518.0,95517.0,7.58e-05]
[1734925335656,0.41871756,95518.0,95501.0,0.36627605]
[1734925335853,0.15807593,95511.0,95501.0,0.3608]
[1734925337060,0.15907593,95511.0,95501.0,0.3668]
[1734925337261,0.21148093,95511.0,95501.0,0.3668]
[1734925339069,0.001,95511.0,95510.0,0.052405]
[1734925339474,0.001,95511.0,95501.0,0.3668]
[1734925339661,0.15907593,95511.0,95501.0,0.3668]
[1734925339971,0.15907593,95511.0,95503.0,0.052408]
[1734925340267,0.09365241,95527.0,95525.0,0.052397]
[1734925340562,0.09365241,95527.0,95515.0,0.052402]
[1734925340954,0.09365241,95527.0,95517.0,0.052401]
[1734925341364,0.00013342,95526.0,95517.0,0.052401]
[1734925342561,0.00113342,95526.0,95517.0,0.052401]
[1734925342767,0.05352942,95526.0,95517.0,0.052401]
[1734925343267,0.05914228,95526.0,95517.0,0.052401]
[1734925345261,0.09365241,95525.0,95517.0,0.059401]
[1734925345461,0.09365241,95525.0,95517.0,0.007]
[1734925345667,0.052397,95524.0,95517.0,0.007]
[1734925345964,0.052397,95524.0,95517.0,0.001]
[1734925346276,0.09365241,95525.0,95517.0,0.001]
[1734925346457,0.09365241,95522.0,95517.0,0.001]
[1734925346657,0.09365241,95522.0,95518.0,0.052401]
[1734925346867,0.09365241,95522.0,95520.0,0.052399]
[1734925347768,0.09365241,95523.0,95520.0,0.052399]
[1734925348668,0.09365241,95523.0,95517.0,0.001]
[1734925348977,0.058399,95522.0,95515.0,0.066]
[1734925349471,0.0524,95520.0,95515.0,0.066]
[1734925349675,0.052401,95517.0,95501.0,0.0676]
[1734925349886,0.052401,95517.0,95502.0,0.413209]
[1734925350069,0.052399,95521.0,95515.0,0.003]
[1734925350368,0.00013342,95526.0,95515.0,0.003]
[1734925350369,0.12491603,95516.0,95515.0,0.003]
[1734925351961,0.15621223,95516.0,95515.0,0.001]
[1734925352569,0.15621223,95516.0,95511.0,0.052404]
[1734925352570,0.15721223,95516.0,95511.0,0.052404]
[1734925352866,0.15721223,95516.0,95515.0,0.052402]
[1734925353175,0.001,95516.0,95515.0,0.052402]
[1734925354367,0.001,95516.0,95508.0,0.052406]
[1734925354563,0.052403,95513.0,95502.0,0.36156]
[1734925354771,0.36776482,95520.0,95502.0,0.3608]
[1734925354772,0.052409,95503.0,95502.0,0.3608]
[1734925355071,0.05241,95501.0,95500.0,0.1]
[1734925355268,0.0525431,95501.0,95500.0,0.1]
[1734925356173,0.052416,95490.0,95479.0,0.1353]
[1734925356375,0.413216,95490.0,95478.0,0.00011961]
[1734925356872,0.052419,95485.0,95478.0,0.00011961]
[1734925357671,0.052422,95480.0,95478.0,0.00011961]
[1734925358380,0.052422,95480.0,95464.0,0.3608]
[1734925358582,0.05763249,95479.0,95472.0,0.3608]
[1734925358774,0.05763249,95479.0,95478.0,0.052423]
[1734925359781,0.05763249,95479.0,95472.0,0.3608]
[1734925359782,0.001,95479.0,95472.0,0.3608]
[1734925359980,0.001,95479.0,95478.0,0.052423]
[1734925360678,0.12613955,95479.0,95478.0,0.052423]
[1734925361573,0.12813955,95479.0,95478.0,0.052423]
[1734925361970,0.12513955,95479.0,95478.0,0.052423]
[1734925362178,0.12513955,95479.0,95472.0,0.3608]
[1734925362179,0.12713955,95479.0,95472.0,0.34130496]
[1734925362675,0.002,95479.0,95472.0,0.34130496]
[1734925362877,0.3608,95481.0,95480.0,0.052421]
[1734925363081,0.15638787,95484.0,95480.0,0.3608]
[1734925363975,0.15638787,95484.0,95483.0,0.05242]
[1734925364381,0.12515875,95487.0,95483.0,0.05242]
[1734925364680,0.12515875,95487.0,95485.0,0.052419]
[1734925365271,0.12515875,95486.0,95485.0,0.052419]
[1734925366372,0.005,95487.0,95485.0,0.052419]
[1734925366574,0.12515875,95489.0,95488.0,0.052417]
[1734925367274,0.48651876,95490.0,95488.0,0.052417]
[1734925367474,0.48595875,95490.0,95488.0,0.052417]
[1734925368281,0.48595875,95490.0,95480.0,0.36775319]
[1734925368475,0.48595875,95490.0,95480.0,0.00695319]
[1734925368678,0.48595875,95490.0,95480.0,0.10542588]
[1734925368877,0.004,95489.0,95480.0,0.10542588]
[1734925369078,0.004,95489.0,95488.0,0.052417]
[1734925369284,0.3608,95490.0,95488.0,0.052417]
[1734925369484,0.3618,95490.0,95488.0,0.052417]
[1734925370484,0.3608,95490.0,95488.0,0.052417]
[1734925370683,0.005,95489.0,95488.0,0.052417]
[1734925372085,0.3608,95490.0,95488.0,0.052417]
[1734925372394,0.3678,95490.0,95488.0,0.052417]
[1734925372595,0.3678,95490.0,95489.0,0.1949]
[1734925372796,0.3608,95490.0,95489.0,0.1949]
[1734925373386,0.3678,95490.0,95489.0,0.1949]
[1734925374890,0.007,95490.0,95489.0,0.1949]
[1734925375090,0.09385075,95498.0,95497.0,0.052412]
[1734925375284,0.12515875,95503.0,95500.0,0.052411]
[1734925376290,0.00157138,95510.0,95500.0,0.052411]
[1734925376486,0.0071331,95501.0,95500.0,0.052411]
[1734925379288,0.0071331,95501.0,95500.0,0.05929849]
[1734925379485,0.0001331,95501.0,95500.0,0.05929849]
[1734925379701,0.0061331,95501.0,95500.0,0.06029849]
[1734925380098,0.0061331,95501.0,95500.0,0.05929849]
[1734925380299,0.0081331,95501.0,95500.0,0.06029849]
[1734925381294,0.0081331,95501.0,95500.0,0.053411]
[1734925381494,0.0081331,95501.0,95500.0,0.001]
[1734925384206,0.0605431,95501.0,95500.0,0.001]
[1734925384503,0.0605431,95501.0,95477.0,0.24766954]
[1734925384504,0.052423,95478.0,95477.0,0.24766954]
[1734925384706,0.3608,95486.0,95477.0,0.00157085]
[1734925385399,0.052419,95484.0,95477.0,0.00157085]
[1734925385905,0.05242,95483.0,95477.0,0.00157085]
[1734925386107,0.052421,95481.0,95477.0,0.00157085]
[1734925386600,0.052421,95481.0,95477.0,0.00357085]
[1734925387596,0.122221,95481.0,95477.0,0.00357085]
[1734925388000,0.125221,95481.0,95477.0,0.00157085]
[1734925391806,0.125221,95481.0,95471.0,0.052426]
[1734925392009,0.23064688,95481.0,95471.0,0.052426]
[1734925393008,0.3608,95486.0,95470.0,0.10542588]
[1734925393216,0.3608,95486.0,95483.0,0.05242]
[1734925393605,0.3608,95486.0,95485.0,0.052419]
[1734925394307,0.12515875,95490.0,95479.0,0.3608]
[1734925394499,0.12515875,95490.0,95489.0,0.052417]
[1734925394700,0.12515875,95490.0,95488.0,0.3608]
[1734925394903,0.12515875,95490.0,95481.0,0.052421]
[1734925395105,0.10542588,95491.0,95481.0,0.052421]
[1734925395306,0.3608,95499.0,95480.0,0.3608]
[1734925395505,0.3608,95499.0,95497.0,0.052412]
[1734925396006,0.00767018,95501.0,95497.0,0.052412]
[1734925396204,0.00767018,95501.0,95498.0,0.052411]
[1734925397312,0.006,95499.0,95498.0,0.052411]
[1734925397912,0.01467018,95501.0,95498.0,0.053411]
[1734925399414,0.007,95499.0,95498.0,0.053411]
[1734925399708,0.3678,95499.0,95498.0,0.001]
[1734925400015,0.052417,95489.0,95488.0,0.3608]
[1734925400599,0.052418,95488.0,95478.0,0.052422]
[1734925401009,0.069,95497.0,95476.0,0.24686251]
[1734925401210,0.052414,95494.0,95481.0,0.05242]
[1734925401607,0.052415,95493.0,95481.0,0.05242]
[1734925402004,0.052415,95493.0,95478.0,0.3608]
[1734925402414,0.001,95489.0,95488.0,0.002]
[1734925402607,0.001,95489.0,95488.0,0.3628]
[1734925402914,0.001,95493.0,95488.0,0.413217]
[1734925403511,0.001,95489.0,95488.0,0.413217]
[1734925404113,0.06008018,95501.0,95488.0,0.413217]
[1734925404314,0.001,95493.0,95490.0,0.052416]
[1734925405834,0.052411,95500.0,95490.0,0.052416]
[1734925406617,0.001,95493.0,95490.0,0.054416]
[1734925407012,0.052411,95500.0,95490.0,0.052416]
[1734925407212,0.001,95500.0,95490.0,0.054416]
[1734925407421,0.001,95500.0,95490.0,0.002]
[1734925407710,0.052413,95496.0,95490.0,0.002]
[1734925408810,0.001,95493.0,95490.0,0.002]
[1734925409417,0.053413,95496.0,95490.0,0.002]
[1734925409922,0.052413,95496.0,95488.0,0.3608]
[1734925410111,0.001,95493.0,95490.0,0.002]
[1734925410812,0.053413,95496.0,95490.0,0.002]
[1734925412215,0.001,95496.0,95490.0,0.002]
[1734925412413,0.052414,95495.0,95490.0,0.002]
[1734925413007,0.001,95493.0,95490.0,0.002]
[1734925413614,0.001,95493.0,95487.0,0.052417]
[1734925413820,0.052415,95492.0,95490.0,0.002]
[1734925414416,0.052415,95491.0,95490.0,0.002]
[1734925415625,0.001,95493.0,95490.0,0.002]
[1734925416014,0.12515875,95494.0,95487.0,0.052417]
[1734925416214,0.001,95492.0,95490.0,0.002]
[1734925416824,0.052412,95497.0,95490.0,0.002]
[1734925417317,0.052412,95497.0,95487.0,0.052417]
[1734925417517,0.001,95492.0,95490.0,0.002]
[1734925418717,0.001,95492.0,95490.0,0.054416]
[1734925419626,0.12547029,95495.0,95490.0,0.054416]
[1734925420020,0.052415,95492.0,95490.0,0.002]
[1734925420220,0.055415,95492.0,95484.0,0.36971128]
[1734925420422,0.055415,95492.0,95484.0,0.36895128]
[1734925420623,0.055415,95492.0,95485.0,0.052419]
[1734925420836,0.052415,95492.0,95490.0,0.002]
[1734925423124,0.052417,95488.0,95484.0,0.3608]
[1734925423327,0.001,95492.0,95484.0,0.415219]
[1734925423831,0.052415,95492.0,95490.0,0.002]
[1734925424234,0.12547029,95491.0,95490.0,0.002]
[1734925424426,0.12547029,95491.0,95484.0,0.36356]
[1734925424619,0.12547029,95491.0,95489.0,0.052416]
[1734925424825,0.15694788,95498.0,95497.0,0.052412]
[1734925425030,0.04088787,95498.0,95497.0,0.413212]
[1734925426928,0.0001331,95501.0,95500.0,0.052411]
[1734925428434,0.3608,95518.0,95517.0,0.052401]
[1734925429633,0.3608,95531.0,95522.0,0.052398]
[1734925429930,0.0001222,95523.0,95522.0,0.052398]
[1734925431531,0.0001222,95523.0,95514.0,0.10542588]
[1734925431834,0.001,95518.0,95517.0,0.004]
[1734925432232,1.181,95518.0,95517.0,0.004]
[1734925433622,0.001,95518.0,95517.0,0.004]
[1734925434027,0.0524,95519.0,95512.0,0.052404]
[1734925434921,0.001,95518.0,95517.0,0.004]
[1734925435327,0.06078266,95519.0,95512.0,0.052404]
[1734925435527,0.00838266,95519.0,95514.0,0.052403]
[1734925435733,0.0741,95522.0,95514.0,0.052403]
[1734925436428,0.36148221,95523.0,95508.0,0.10542588]
[1734925436628,0.36148221,95523.0,95509.0,0.052405]
[1734925436629,0.3609222,95523.0,95509.0,0.052405]
[1734925436837,0.3609222,95523.0,95508.0,0.10542588]
[1734925437032,0.001,95518.0,95517.0,0.004]
[1734925437523,0.36969725,95523.0,95517.0,0.052401]
[1734925437724,0.36913724,95523.0,95508.0,0.16083188]
[1734925438023,0.052403,95515.0,95508.0,0.055406]
[1734925438228,0.052403,95515.0,95508.0,0.052406]
[1734925440442,2e-07,95523.0,95521.0,0.052399]
[1734925440640,0.18769268,95535.0,95534.0,0.052392]
[1734925440836,0.18769268,95535.0,95534.0,0.413192]
[1734925441543,0.3608,95552.0,95548.0,0.052384]
[1734925441727,0.3608,95552.0,95551.0,0.052383]
[1734925442032,0.18769268,95561.0,95560.0,0.052378]
[1734925442233,0.18776674,95561.0,95559.0,0.3608]
[1734925442437,0.18776674,95561.0,95542.0,0.00836459]
[1734925442627,0.3608,95559.0,95540.0,0.10542588]
[1734925442833,0.3608,95559.0,95543.0,0.3608]
[1734925443032,0.3608,95550.0,95531.0,0.3608]
[1734925443242,0.052385,95548.0,95543.0,0.18477778]
[1734925444041,0.052385,95548.0,95543.0,0.19077778]
[1734925444433,0.052385,95548.0,95543.0,0.006]
[1734925444633,0.053385,95548.0,95543.0,0.006]
[1734925444930,0.053385,95548.0,95547.0,0.052385]
[1734925444931,0.001,95548.0,95547.0,0.052385]
[1734925445331,0.001,95548.0,95543.0,0.006]
[1734925445332,0.007,95548.0,95544.0,0.1538]
[1734925445532,0.007,95548.0,95547.0,0.052385]
[1734925447041,7.406e-05,95561.0,95559.0,0.052378]
[1734925448144,7.406e-05,95561.0,95532.0,0.3608]
[1734925448441,7.406e-05,95561.0,95530.0,0.10542588]
[1734925448442,0.052391,95537.0,95535.0,0.18477778]
[1734925448641,0.074,95536.0,95535.0,0.18477778]
[1734925448940,0.3608,95539.0,95535.0,0.18477778]
[1734925449140,0.3608,95545.0,95535.0,0.18477778]
[1734925449344,0.052387,95544.0,95535.0,0.18477778]
[1734925449843,0.052387,95544.0,95531.0,0.413993]
[1734925450043,0.052387,95544.0,95538.0,0.005]
[1734925450642,0.052387,95544.0,95531.0,0.052393]
[1734925450851,0.053387,95544.0,95535.0,0.005]
[1734925451343,0.052387,95544.0,95531.0,0.052393]
[1734925451644,0.059387,95544.0,95531.0,0.052393]
[1734925452040,0.059387,95544.0,95535.0,0.052391]
[1734925452948,0.059387,95544.0,95530.0,0.15793014]
[1734925452949,0.3678,95544.0,95530.0,0.15793014]
[1734925453347,0.3678,95544.0,95541.0,0.052388]
[1734925453738,0.3668,95544.0,95541.0,0.052388]
[1734925454442,0.3648,95544.0,95541.0,0.052388]
[1734925455038,0.3688,95544.0,95541.0,0.052388]
[1734925455443,0.3688,95544.0,95530.0,0.15793014]
[1734925455646,0.3688,95544.0,95528.0,0.3608]
[1734925455837,0.052391,95536.0,95528.0,0.3608]
[1734925456037,0.3688,95544.0,95529.0,0.052395]
[1734925456439,0.3688,95544.0,95531.0,0.052393]
[1734925457339,0.3648,95544.0,95531.0,0.052393]
[1734925458743,0.3648,95544.0,95542.0,0.052387]
[1734925458744,0.004,95544.0,95542.0,0.052387]
[1734925460349,0.009,95544.0,95542.0,0.052387]
[1734925462547,0.009,95544.0,95542.0,0.06116133]
[1734925462849,7.406e-05,95561.0,95560.0,0.052378]
[1734925464052,0.00107406,95561.0,95560.0,0.005]
[1734925465153,0.00107406,95561.0,95560.0,0.057378]
[1734925468854,0.00107406,95561.0,95550.0,0.09238614]
[1734925469057,0.00107406,95561.0,95550.0,0.26147778]
[1734925469258,0.00107406,95561.0,95550.0,0.41940792]
[1734925469461,0.00107406,95561.0,95560.0,0.052378]
[1734925469752,0.3608,95589.0,95560.0,0.17236039]
[1734925469956,0.0763,95591.0,95580.0,0.052367]
[1734925470551,0.1562226,95582.0,95580.0,0.052367]
[1734925471244,0.00257037,95581.0,95580.0,0.052367]
[1734925472954,0.00957037,95581.0,95580.0,0.053367]
[1734925473859,0.00957037,95581.0,95580.0,0.06244018]
[1734925476360,0.3608,95599.0,95580.0,0.06244018]
[1734925476555,0.3608,95599.0,95598.0,0.052357]
[1734925476861,0.00917338,95606.0,95598.0,0.052357]
[1734925477556,0.0757,95607.0,95598.0,0.052357]
[1734925477755,0.0757,95607.0,95598.0,0.061357]
[1734925478765,0.0757,95607.0,95598.0,0.422157]
[1734925480452,0.075,95620.0,95598.0,0.422157]
[1734925480661,0.075,95620.0,95599.0,0.0775]
[1734925481258,0.103,95600.0,95599.0,0.0775]
[1734925482358,0.103,95600.0,95598.0,0.42403037]
[1734925482557,0.103,95600.0,95598.0,0.42327037]
[1734925482758,0.1,95600.0,95599.0,0.001]
[1734925483359,0.00880107,95619.0,95598.0,0.42403037]
[1734925483562,0.075,95620.0,95609.0,0.21031032]
[1734925484164,0.00056001,95622.0,95621.0,0.052344]
[1734925484370,0.0779,95631.0,95625.0,0.052342]
[1734925485664,0.0779,95631.0,95616.0,0.3608]
[1734925485970,0.0779,95631.0,95609.0,0.009]
[1734925485971,0.3608,95624.0,95610.0,0.10515516]
[1734925486166,0.3608,95614.0,95612.0,0.052349]
[1734925486568,0.05234,95629.0,95616.0,0.052346]
[1734925486764,0.05234,95629.0,95619.0,0.10515516]
[1734925487764,0.05234,95629.0,95617.0,0.052346]
[1734925489973,0.05234,95629.0,95617.0,0.059346]
[1734925490374,0.05234,95629.0,95617.0,0.052346]
[1734925491174,0.3608,95625.0,95617.0,0.007]
[1734925491471,0.052345,95619.0,95617.0,0.007]
[1734925492758,0.052354,95603.0,95590.0,0.052361]
[1734925492959,0.052357,95599.0,95590.0,0.052361]
[1734925494064,0.3608,95610.0,95593.0,0.3608]
[1734925494262,0.3608,95610.0,95608.0,0.052351]
[1734925494674,0.12456288,95617.0,95616.0,0.052347]
[1734925495670,0.3608,95621.0,95616.0,0.052347]
[1734925496772,0.005,95617.0,95616.0,0.052347]
[1734925497168,0.1427,95637.0,95624.0,0.052342]
[1734925497169,0.0936683,95635.0,95624.0,0.052342]
[1734925497473,0.0713,95631.0,95629.0,0.052339]
[1734925498466,0.010594,95632.0,95629.0,0.052339]